fUST/lending_fUST_20251115
["ID","MTS","AMOUNT","RATE_DAILY","PERIOD"]
[394022174,1763199039178,-347.18578328,0.00024898,2]
[394022175,1763199039187,-3578.83,0.00024899,2]
[394022176,1763199039197,-3578.83,0.00024899,2]
[394022177,1763199039207,-912.3,0.00024899,2]
[394022178,1763199039217,-912.3,0.00024899,2]
[394022179,1763199039226,-912.3,0.00024899,2]
[394022180,1763199039236,-223.098598,0.00024899,7]
[394022181,1763199039245,-151.0,0.00024899,7]
[394022182,1763199039255,-151.0,0.00024899,7]
[394022183,1763199039265,-171.532473,0.000249,7]
[394022184,1763199039274,-171.532473,0.000249,7]
[394022185,1763199039283,-171.532473,0.000249,7]
[394022186,1763199039293,-61254.4154544,0.000249,2]
[394022187,1763199039301,-2042.98924521,0.00024905,2]
[394022188,1763199039310,-15313.6038636,0.0002497,2]
[394022189,1763199039320,-493.97907115,0.00024973,2]
[394022190,1763199039329,-500.0,0.00024973,2]
[394022191,1763199039338,-502.91602362,0.00024973,2]
[394022192,1763199039347,-500.0,0.00024973,2]
[394022193,1763199039356,-522.104074,0.00024973,2]
[394022194,1763199039366,-500.0,0.00024973,2]
[394022195,1763199039376,-500.0,0.00024973,2]
[394022196,1763199039385,-15313.6038636,0.00024979,2]
[394022197,1763199039394,-3578.83,0.0002498,2]
[394022198,1763199039404,-151.0,0.0002498,7]
[394022199,1763199039413,-912.3,0.0002498,2]
[394022200,1763199039422,-171.532473,0.0002498,7]
[394022201,1763199039432,-171.532473,0.0002498,7]
[394022202,1763199039440,-171.532469,0.0002498,7]
[394022204,1763199039641,-15313.6038636,0.0002498,2]
[394022205,1763199039651,-3578.83,0.00024989,2]
[394022206,1763199039660,-3578.83,0.00024989,2]
[394022207,1763199039669,-3578.83,0.00024989,2]
[394022208,1763199039678,-3578.83,0.00024989,2]
[394022209,1763199039687,-90.13687396,0.00024989,2]
[394022210,1763199039698,-3488.69312604,0.00024989,2]
[394022212,1763199039707,-153.761034,0.00024989,7]
[394022213,1763199039716,-54117.41134911,0.0002499,2]
[394022215,1763199039807,-5347.8547653,0.0002499,2]
[394022245,1763199043391,-6070.30134272,0.0002499,2]
[394022246,1763199043402,-508.54553003,0.0002499,2]
[394022247,1763199043414,-920.38129747,0.0002499,2]
[394022248,1763199043425,-436.70567626,0.0002499,2]
[394022249,1763199043449,-9827.54064558,0.0002499,2]
[394022250,1763199043460,-7984.41164107,0.0002499,2]
[394022251,1763199043469,-195.39882573,0.00025024,2]
[394022252,1763199043478,-1407.83769537,0.00025111,2]
[394022262,1763199045959,151.0,0.00024658,7]
[394022263,1763199046207,-1098.37612677,0.00025111,2]
[394022264,1763199046296,151.0,0.00024658,7]
[394022277,1763199046578,151.0,0.00024696,7]
[394022278,1763199046881,151.0,0.00024762,7]
[394022279,1763199047238,253.662365,0.00024764,7]
[394022280,1763199105619,-298.0,0.00020939,2]
[394022281,1763199105643,-549.03489342,0.00024335,2]
[394022282,1763199105668,-988.26280815,0.00024335,2]
[394022283,1763199105695,-577.8082759,0.00024591,2]
[394022284,1763199105719,-1040.05489661,0.00024591,2]
[394022285,1763199105743,-1848.98648287,0.00024591,2]
[394022286,1763199105766,-151.0,0.00024658,7]
[394022287,1763199105789,-300.0,0.00024761,2]
[394022288,1763199105817,-500.0,0.00024762,2]
[394022289,1763199105844,-173.13115298,0.00024762,2]
[394022290,1763199105870,-500.0,0.00024762,2]
[394022291,1763199105900,-500.0,0.00024762,2]
[394022292,1763199105925,-172.99202807,0.00024762,2]
[394022293,1763199105948,-223.11257964,0.00024899,2]
[394022294,1763199105970,-500.0,0.00024899,2]
[394022295,1763199105993,-248.97301995,0.00024899,2]
[394022296,1763199106017,-500.0,0.00024899,2]
[394022297,1763199106042,-500.0,0.00024899,2]
[394022298,1763199106066,-293.13569772,0.00024899,2]
[394022299,1763199106088,-500.0,0.00024973,2]
[394022300,1763199106111,-500.0,0.00024973,2]
[394022301,1763199106133,-500.0,0.00024973,2]
[394022302,1763199106156,-500.0,0.00024973,2]
[394022303,1763199106180,-5804.70411688,0.00025021,2]
[394022304,1763199106207,-12807.39004146,0.00025111,2]
[394022305,1763199106230,-1000.0,0.00025121,2]
[394022306,1763199106256,-328.59404314,0.00025162,2]
[394022307,1763199106286,-326.29173227,0.00025162,2]
[394022308,1763199106311,-912.3,0.00025167,2]
[394022309,1763199106335,-500.0,0.00025173,2]
[394022310,1763199106359,-275.13327133,0.00025173,2]
[394022311,1763199106382,-500.0,0.00025173,2]
[394022312,1763199106405,-500.61430866,0.00025173,2]
[394022313,1763199106429,-3578.83,0.00025177,2]
[394022314,1763199106453,-3578.83,0.00025177,2]
[394022315,1763199106477,-3578.83,0.00025177,2]
[394022316,1763199106503,-3578.83,0.00025177,2]
[394022317,1763199106527,-3578.84843074,0.00025177,2]
[394022318,1763199106550,-912.3,0.00025177,2]
[394022319,1763199106573,-912.3,0.00025203,2]
[394022320,1763199106598,-15313.6038636,0.00025206,2]
[394022321,1763199106621,-150.63,0.000253,7]
[394022322,1763199106645,-507.1083366,0.00025321,2]
[394022323,1763199106669,-1000.0,0.00025321,2]
[394022324,1763199106693,-260.0,0.00025346,2]
[394022325,1763199106716,-1930.57888401,0.00025514,2]
[394022326,1763199106740,-390.48259364,0.00025521,2]
[394022327,1763199106764,-1005.32987171,0.00025521,2]
[394022328,1763199106788,-1004.87245007,0.00025521,2]
[394022329,1763199106829,-585.78095502,0.00025521,2]
[394022330,1763199106859,-500.0,0.00025521,2]
[394022331,1763199106882,-501.67009495,0.00025521,2]
[394022332,1763199106908,-501.93643937,0.00025521,2]
[394022333,1763199106932,-627.23,0.00025603,2]
[394022334,1763199106958,-627.23,0.00025603,2]
[394022335,1763199106981,-627.23,0.00025603,2]
[394022336,1763199107005,-912.3,0.00025603,2]
[394022337,1763199107028,-500.0,0.00025604,2]
[394022338,1763199107053,-627.23,0.00025604,2]
[394022339,1763199107075,-500.0,0.00025604,2]
[394022340,1763199107098,-500.0,0.00025613,2]
[394022341,1763199107121,-500.0,0.00025613,2]
[394022342,1763199107144,-500.0,0.00025613,2]
[394022343,1763199107167,-627.23,0.00025613,2]
[394022344,1763199107191,-627.23,0.00025613,2]
[394022345,1763199107215,-627.23,0.00025613,2]
[394022346,1763199107240,-627.23,0.00025613,2]
[394022347,1763199107491,-902.3,0.00025613,2]
[394022348,1763199107513,-902.3,0.00025613,2]
[394022349,1763199107536,-902.3,0.00025613,2]
[394022350,1763199107558,-623.79423714,0.00025613,2]
[394022351,1763199107581,-912.3,0.00025613,2]
[394022352,1763199107603,-500.0,0.00025614,2]
[394022353,1763199107626,-500.0,0.00025614,2]
[394022354,1763199107650,-627.23,0.00025614,2]
[394022355,1763199107676,-902.3,0.00025614,2]
[394022356,1763199107700,-902.3,0.00025614,2]
[394022357,1763199107723,-366.47534413,0.00025616,2]
[394022358,1763199107746,-659.65561943,0.00025616,2]
[394022359,1763199107769,-581.88528473,0.00025616,2]
[394022360,1763199107791,-1047.39351251,0.00025616,2]
[394022361,1763199107813,-1862.03291113,0.00025616,2]
[394022362,1763199107837,-1187.31182217,0.00025668,2]
[394022363,1763199124161,-423.80259783,0.00025668,2]
[394022364,1763199124184,-500.0,0.00025673,2]
[394022365,1763199124207,-500.0,0.00025673,2]
[394022366,1763199124230,-300.0,0.0002571,2]
[394022367,1763199124253,-15313.6038636,0.00025711,2]
[394022368,1763199124275,-734.22771344,0.00025721,2]
[394022369,1763199124297,-151.0,0.00025868,7]
[394022370,1763199124319,-871.87267346,0.00025868,2]
[394022371,1763199124343,-360.0,0.00025894,2]
[394022372,1763199124365,-500.0,0.0002598,2]
[394022373,1763199124388,-902.3,0.0002598,2]
[394022374,1763199124411,-500.0,0.00026027,2]
[394022375,1763199124433,-500.0,0.00026027,2]
[394022376,1763199124454,-500.0,0.00026027,2]
[394022377,1763199124476,-500.0,0.00026027,2]
[394022378,1763199124498,-500.0,0.00026027,2]
[394022379,1763199124521,-500.0,0.00026027,2]
[394022380,1763199124543,-525.20845373,0.00026027,2]
[394022381,1763199124564,-500.0,0.00026039,2]
[394022382,1763199124585,-999.0,0.00026039,2]
[394022383,1763199124608,-627.23,0.00026075,2]
[394022384,1763199124630,-500.0,0.00026091,2]
[394022385,1763199124651,-412.87457746,0.00026096,3]
[394022386,1763199124674,-500.0,0.000261,2]
[394022387,1763199124697,-627.23,0.000261,2]
[394022388,1763199124719,-902.3,0.000261,2]
[394022389,1763199124740,-912.3,0.000261,2]
[394022390,1763199124763,-627.23,0.00026101,2]
[394022391,1763199124784,-500.0,0.00026101,2]
[394022392,1763199124805,-500.0,0.00026101,2]
[394022393,1763199124827,-500.0,0.00026101,2]
[394022394,1763199124854,-902.3,0.00026101,2]
[394022395,1763199124876,-902.3,0.00026101,2]
[394022396,1763199124898,-500.0,0.00026172,2]
[394022397,1763199124921,-500.0,0.00026173,2]
[394022398,1763199124943,-482.40227416,0.00026178,2]
[394022399,1763199124966,-722.71077829,0.00026178,2]
[394022400,1763199124988,-15313.6038636,0.00026189,2]
[394022401,1763199125012,-627.23,0.00026199,2]
[394022402,1763199125035,-11607.92,0.000262,7]
[394022403,1763199125064,500.0,0.00025673,2]
[394022404,1763199125093,502.60182256,0.00025673,2]
[394022405,1763199247437,150.0,0.00025713,2]
[394022406,1763199361595,1195.22081395,0.00025542,3]
[394022407,1763199363497,151.12396646,0.00025702,2]
[394022408,1763199396345,1126.07022156,0.00025748,2]
[394022409,1763199396381,1126.07022157,0.00025937,2]
[394022410,1763199397665,3739.11968182,0.00025803,2]
[394022411,1763199526945,755.91167288,0.00025542,3]
[394022412,1763199560532,150.0,0.00025713,2]
[394022413,1763199695351,800.0,0.0002614,2]
[394022414,1763199695616,800.0,0.00026197,2]
[394022415,1763199696045,800.0,0.00026143,2]
[394022416,1763199696072,800.0,0.000262,2]
[394022417,1763199748843,800.0,0.00025977,2]
[394022418,1763199749112,576.04827824,0.00026046,2]
[394022419,1763199761976,577.200182,0.00025298,2]
[394022420,1763199871771,150.0,0.00025713,2]
[394022421,1763199896602,458.1527684,0.00025973,2]
[394022422,1763199991748,821.50950741,0.00026107,2]
[394022423,1763200003062,15837.9844598,0.00025293,2]
[394022424,1763200129567,334.92444963,0.00025712,2]
[394022425,1763200132074,157.4538942,0.00026021,3]
[394022426,1763200183977,271.65999031,0.00025732,2]
[394022464,1763200232356,-284.39173672,0.00026255,2]
[394022481,1763200237284,3670.30127364,0.00025973,2]
[394022485,1763200238393,-412.0,0.00025973,2]
[394022486,1763200238405,-1584.64632866,0.00025973,2]
[394022487,1763200238415,-4794.72436555,0.00026255,2]
[394022488,1763200238424,-912.3,0.00026258,2]
[394022489,1763200238434,-1313.06179639,0.00026261,2]
[394022490,1763200238444,-300.0,0.00026267,2]
[394022491,1763200238455,-2282.6408035,0.00026282,2]
[394022492,1763200238465,-300.0,0.00026354,2]
[394022493,1763200238474,-1200.0,0.00026354,2]
[394022494,1763200238483,-300.0,0.00026354,2]
[394022495,1763200238493,-164.37858854,0.00026355,2]
[394022496,1763200238502,-1000.0,0.00026355,2]
[394022497,1763200238511,-454.22333971,0.00026355,2]
[394022518,1763200246769,-500.0,0.00026355,2]
[394022519,1763200246779,-401.32466091,0.00026355,2]
[394022531,1763200251757,-144.45199938,0.00026355,2]
[394022532,1763200251768,-1000.0,0.00026355,2]
[394022533,1763200251780,-2454.37475186,0.00026355,2]
[394022534,1763200251791,-1000.0,0.00026355,2]
[394022535,1763200251802,-1000.0,0.00026355,2]
[394022536,1763200251813,-1000.0,0.00026355,2]
[394022537,1763200251823,-250.0,0.00026355,2]
[394022538,1763200251834,-1000.0,0.00026355,2]
[394022539,1763200251845,-250.0,0.00026355,2]
[394022540,1763200251856,-1000.0,0.00026355,2]
[394022541,1763200251867,-250.0,0.00026355,2]
[394022542,1763200251878,-1000.0,0.00026355,2]
[394022543,1763200251889,-250.0,0.00026355,2]
[394022544,1763200251899,-1000.0,0.00026355,2]
[394022545,1763200251909,-250.0,0.00026355,2]
[394022546,1763200251920,-1000.0,0.00026355,2]
[394022547,1763200251931,-250.0,0.00026355,2]
[394022548,1763200251942,-1000.0,0.00026355,2]
[394022549,1763200251952,-250.0,0.00026355,2]
[394022550,1763200251963,-1000.0,0.00026355,2]
[394022551,1763200251974,-250.0,0.00026355,2]
[394022552,1763200251984,-1000.0,0.00026355,2]
[394022553,1763200251995,-250.0,0.00026355,2]
[394022554,1763200252005,-1000.0,0.00026355,2]
[394022555,1763200252015,-250.0,0.00026355,2]
[394022556,1763200252026,-151.0,0.00026355,2]
[394022557,1763200252036,-1000.0,0.00026355,2]
[394022558,1763200252046,-250.0,0.00026355,2]
[394022559,1763200252056,-151.0,0.00026355,2]
[394022560,1763200252066,-1000.0,0.00026355,2]
[394022561,1763200252076,-1000.0,0.00026355,2]
[394022562,1763200252086,-151.0,0.00026355,2]
[394022563,1763200252097,-1000.0,0.00026355,2]
[394022564,1763200252108,-151.0,0.00026355,2]
[394022565,1763200252120,-1000.0,0.00026355,2]
[394022566,1763200252130,-151.0,0.00026355,2]
[394022567,1763200252139,-151.0,0.00026355,2]
[394022568,1763200252149,-151.0,0.00026355,2]
[394022569,1763200252159,-248.54192169,0.00026355,2]
[394022570,1763200252169,-151.0,0.00026355,2]
[394022571,1763200252180,-151.0,0.00026355,2]
[394022572,1763200252194,-151.0,0.00026355,2]
[394022573,1763200252204,-167.42579836,0.00026355,2]
[394022574,1763200252215,-585.77031401,0.00026373,2]
[394022575,1763200252225,-448.42870503,0.00026373,2]
[394022576,1763200252235,-500.0,0.00026373,2]
[394022577,1763200252245,-902.3,0.000265,2]
[394022578,1763200252256,-225.090246,0.00026676,2]
[394022579,1763200252267,-272.02313964,0.00026709,2]
[394022580,1763200252278,-500.0,0.0002672,2]
[394022581,1763200252288,-198.92892188,0.00026915,3]
[394022582,1763200252298,-1000.0,0.00026921,2]
[394022583,1763200252310,-154.5,0.00026988,2]
[394022584,1763200252326,-627.23,0.00026989,2]
[394022585,1763200252346,-627.23,0.00026989,2]
[394022586,1763200252356,-627.23,0.00026989,2]
[394022587,1763200252366,-627.23,0.00026989,2]
[394022588,1763200252376,-627.23,0.00027281,2]
[394022589,1763200252387,-500.0,0.00027347,2]
[394022590,1763200252397,-902.3,0.00027396,2]
[394022591,1763200252406,-912.3,0.00027396,2]
[394022592,1763200252417,-1500.0,0.00027468,5]
[394022593,1763200252427,-627.23,0.00027815,20]
[394022594,1763200252438,-627.23,0.00027815,20]
[394022595,1763200252447,-627.23,0.00027815,20]
[394022596,1763200252458,-627.23,0.00027815,20]
[394022597,1763200252469,-627.39917356,0.00027815,20]
[394022598,1763200252480,-500.0,0.00027816,20]
[394022599,1763200252490,-902.3,0.00027826,2]
[394022600,1763200252500,-912.3,0.00027835,2]
[394022601,1763200252511,-500.0,0.00027836,20]
[394022602,1763200252522,-500.0,0.00027836,20]
[394022603,1763200252533,-500.0,0.00027836,20]
[394022604,1763200252544,-500.0,0.00027836,20]
[394022605,1763200252554,-500.0,0.00027836,20]
[394022606,1763200252897,-500.0,0.00027836,20]
[394022607,1763200252916,-500.0,0.00027836,20]
[394022608,1763200252925,-500.0,0.00027836,20]
[394022609,1763200252934,-500.0,0.00027836,20]
[394022610,1763200252944,-500.0,0.00027836,20]
[394022611,1763200252953,-902.3,0.00027836,2]
[394022612,1763200252962,-902.3,0.00027836,2]
[394022613,1763200252971,-902.3,0.00027836,2]
[394022614,1763200252980,-902.3,0.00027836,2]
[394022615,1763200252990,-500.0,0.00027873,5]
[394022616,1763200252999,-4227.61568502,0.00027898,2]
[394022617,1763200253008,-380.780957,0.000279,20]
[394022618,1763200253018,-500.0,0.00027979,20]
[394022619,1763200253027,-912.3,0.00027988,2]
[394022620,1763200253037,-500.0,0.00027989,20]
[394022621,1763200253046,-500.0,0.00027989,20]
[394022622,1763200253055,-500.0,0.00027989,20]
[394022623,1763200253065,-493.29403947,0.00027989,20]
[394022624,1763200253074,-902.3,0.00027989,2]
[394022625,1763200253084,-902.3,0.00027989,2]
[394022626,1763200253094,-902.3,0.00027989,2]
[394022627,1763200253103,-902.3,0.00027989,2]
[394022628,1763200253113,-902.3,0.00027989,2]
[394022629,1763200253123,-902.3,0.00027989,2]
[394022630,1763200253131,-902.52379972,0.00027989,2]
[394022631,1763200253141,-1936.22584003,0.00028016,5]
[394022632,1763200253150,-150.63,0.000281,7]
[394022633,1763200253159,-1303.86176216,0.0002814,2]
[394022634,1763200253168,-500.0,0.00028351,20]
[394022635,1763200253177,-282.34284351,0.00028351,20]
[394022636,1763200253187,-348.0,0.00028419,2]
[394022637,1763200253200,-1000.0,0.00028421,5]
[394022638,1763200253209,-348.0,0.00028435,2]
[394022639,1763200253218,-500.0,0.0002845,5]
[394022640,1763200253227,-300.0,0.00028511,2]
[394022641,1763200253237,-2282.6408035,0.00028544,2]
[394022642,1763200253247,-709.64,0.00028574,2]
[394022643,1763200253256,-912.3,0.00028575,2]
[394022644,1763200253266,-1200.0,0.00028638,2]
[394022645,1763200253275,-458.1527684,0.00028883,2]
[394022646,1763200253284,-160.0,0.00028935,2]
[394022647,1763200253294,-1500.0,0.00028968,5]
[394022648,1763200253303,-7274.53044615,0.00028969,2]
[394022649,1763200253312,-500.0,0.00028973,5]
[394022650,1763200253321,-500.0,0.00028973,5]
[394022651,1763200253330,-912.3,0.00028989,2]
[394022652,1763200253340,-912.3,0.00028989,2]
[394022653,1763200253350,-912.3,0.00028989,2]
[394022654,1763200253359,-912.3,0.00028989,2]
[394022655,1763200253368,-912.3,0.00028989,2]
[394022656,1763200253377,-912.3,0.00028989,2]
[394022657,1763200253386,-912.52345571,0.00028989,2]
[394022658,1763200253395,-1000.0,0.00028998,5]
[394022659,1763200253404,-10399.145241,0.0002901,2]
[394022660,1763200253414,-709.64,0.00029122,2]
[394022661,1763200253424,-211.65555555,0.00029222,2]
[394022662,1763200253433,-380.780957,0.00029274,20]
[394022663,1763200253443,-634.96666667,0.0002933,2]
[394022664,1763200253452,-416.6516034,0.00029483,2]
[394022665,1763200253462,-634.96666667,0.00029507,9]
[394022666,1763200253471,-1509.24750652,0.00029516,5]
[394022667,1763200253480,-645.64833834,0.00029521,5]
[394022668,1763200253490,-156.17880574,0.00029545,2]
[394022669,1763200253499,-500.0,0.00029545,2]
[394022670,1763200253509,-174.28111397,0.00029545,2]
[394022671,1763200253519,-500.0,0.00029545,2]
[394022672,1763200253528,-255.1949884,0.00029545,2]
[394022673,1763200253538,-1500.0,0.00029546,5]
[394022674,1763200253547,-151.802375,0.00029546,7]
[394022675,1763200253556,-313.955974,0.00029546,7]
[394022676,1763200253566,-313.955974,0.00029546,7]
[394022677,1763200253575,-313.955974,0.00029546,7]
[394022678,1763200253585,-313.955974,0.00029546,7]
[394022679,1763200253594,-151.0,0.00029635,7]
[394022680,1763200253603,-151.0,0.00029635,7]
[394022681,1763200253612,-151.0,0.00029635,7]
[394022682,1763200253621,-151.0,0.00029635,7]
[394022683,1763200253631,-151.0,0.00029635,7]
[394022684,1763200253640,-151.0,0.00029635,7]
[394022685,1763200253649,-151.0,0.00029635,7]
[394022686,1763200253659,-228.680347,0.00029635,7]
[394022687,1763200253668,-1023.731883,0.00029635,7]
[394022688,1763200253678,-1023.731883,0.00029635,7]
[394022689,1763200253688,-1023.731883,0.00029635,7]
[394022690,1763200253697,-1023.731883,0.00029635,7]
[394022691,1763200253708,-151.0,0.00029635,7]
[394022692,1763200253717,-283.59527,0.00029635,7]
[394022693,1763200253726,-283.59527,0.00029635,7]
[394022694,1763200253735,-283.59527,0.00029635,7]
[394022695,1763200253745,-283.59527,0.00029635,7]
[394022696,1763200253754,-709.64,0.0002967,2]
[394022697,1763200253764,-634.96666667,0.00029683,17]
[394022698,1763200253773,-634.96666667,0.0002986,25]
[394022699,1763200253783,-7274.53044615,0.0002999,2]
[394022700,1763200253792,-151.0,0.0002999,7]
[394022701,1763200253802,-10000.0,0.0003,2]
[394022702,1763200253811,-160.0,0.0003,7]
[394022703,1763200253821,-634.96666667,0.00030036,32]
[394022704,1763200253830,-158.166004,0.00030056,20]
[394022705,1763200253840,-5079.11610223,0.00030083,2]
[394022706,1763200253849,-1273.28380445,0.00030094,5]
[394022707,1763200253859,-150.63,0.000302,7]
[394022708,1763200253868,-634.96666667,0.00030212,40]
[394022709,1763200253878,-709.64,0.00030218,2]
[394022710,1763200253887,-634.96666667,0.00030389,48]
[394022711,1763200253896,-211.65555555,0.00030453,56]
[394022712,1763200253905,-293.42384258,0.00030523,2]
[394022713,1763200253914,-153.6413186,0.00030523,2]
[394022714,1763200253924,-634.96666667,0.00030565,56]
[394022715,1763200253934,-400.49007158,0.00030584,2]
[394022716,1763200253943,-380.780957,0.00030648,20]
[394022717,1763200253952,-293.42384258,0.00030707,9]
[394022718,1763200253962,-634.96666667,0.00030742,63]
[394022719,1763200253971,-709.64,0.00030766,2]
[394022720,1763200253981,-2282.6408035,0.00030806,2]
[394022721,1763200253990,-151.0,0.00030806,31]
[394022722,1763200253999,-151.0,0.00030806,31]
[394022723,1763200254008,-151.0,0.00030806,31]
[394022724,1763200254018,-151.0,0.00030806,31]
[394022725,1763200254027,-151.0,0.00030806,31]
[394022726,1763200254037,-208.205423,0.00030806,31]
[394022727,1763200254046,-154.068842,0.00030806,31]
[394022728,1763200254055,-1023.731883,0.00030806,31]
[394022729,1763200254064,-1023.731883,0.00030806,31]
[394022730,1763200254073,-1023.731883,0.00030806,31]
[394022731,1763200254082,-1023.731883,0.00030806,31]
[394022732,1763200254091,-283.59527,0.00030806,31]
[394022733,1763200254100,-283.59527,0.00030806,31]
[394022734,1763200254109,-283.59527,0.00030806,31]
[394022735,1763200254118,-283.59527,0.00030806,31]
[394022736,1763200254127,-293.42384258,0.00030891,17]
[394022737,1763200254137,-1264.466926,0.00030911,2]
[394022738,1763200254146,-313.955974,0.00030918,31]
[394022739,1763200254155,-313.955974,0.00030918,31]
[394022740,1763200254164,-313.955974,0.00030918,31]
[394022741,1763200254174,-313.955974,0.00030918,31]
[394022742,1763200254184,-634.96666667,0.00030918,71]
[394022743,1763200254196,-293.42384258,0.00031074,25]
[394022744,1763200254205,-7274.53044615,0.00031085,2]
[394022745,1763200254217,-634.96666667,0.00031095,79]
[394022746,1763200254226,-224.10066341,0.000311,2]
[394022747,1763200254236,-293.42384258,0.00031258,32]
[394022748,1763200254246,-634.96666667,0.00031271,86]
[394022749,1763200254255,-709.64,0.00031314,2]
[394022750,1763200254265,-293.42384258,0.00031441,40]
[394022751,1763200254274,-151.0,0.00031447,31]
[394022752,1763200254283,-634.96666667,0.00031447,94]
[394022753,1763200254293,-634.96666667,0.00031624,102]
[394022754,1763200254302,-293.42384258,0.00031625,48]
[394022755,1763200254311,-211.65555555,0.00031683,110]
[394022756,1763200254320,-458.1527684,0.00031794,2]
[394022757,1763200254329,-293.42384258,0.00031809,56]
[394022758,1763200254339,-153.6413186,0.00031809,56]
[394022759,1763200254348,-709.64,0.00031862,2]
[394022760,1763200254358,-600.0,0.00031881,30]
[394022761,1763200254367,-150.63,0.000319,7]
[394022762,1763200254376,-180.168,0.00031945,31]
[394022763,1763200254385,-293.42384258,0.00031992,63]
[394022764,1763200254394,-5000.8205056,0.00032,5]
[394022765,1763200254403,-9286.34,0.00032,7]
[394022766,1763200254412,-282.1407077,0.00032013,2]
[394022767,1763200254420,-380.780957,0.00032021,20]
[394022768,1763200254429,-293.42384258,0.00032176,71]
[394022769,1763200254438,-293.42384258,0.00032359,79]
[394022770,1763200254447,-709.64,0.0003241,2]
[394022771,1763200254456,-293.42384258,0.00032543,86]
[394022772,1763200254468,-151.0,0.00032546,31]
[394022773,1763200254477,-151.0,0.00032546,31]
[394022774,1763200254486,-151.0,0.00032546,31]
[394022775,1763200254496,-151.0,0.00032546,31]
[394022776,1763200254505,-151.0,0.00032546,31]
[394022777,1763200254515,-1023.731883,0.00032546,31]
[394022778,1763200254524,-1023.731883,0.00032546,31]
[394022779,1763200254534,-1023.731883,0.00032546,31]
[394022780,1763200254544,-1023.731883,0.00032546,31]
[394022781,1763200254554,-283.59527,0.00032546,31]
[394022782,1763200254563,-283.59527,0.00032546,31]
[394022783,1763200254572,-283.59527,0.00032546,31]
[394022784,1763200254581,-283.59527,0.00032546,31]
[394022785,1763200254590,-293.42384258,0.00032727,94]
[394022786,1763200254600,-7274.53044615,0.00032867,2]
[394022787,1763200254609,-151.0,0.00032877,31]
[394022788,1763200254618,-151.0,0.00032877,31]
[394022789,1763200254627,-151.0,0.00032877,31]
[394022790,1763200254636,-233.564993,0.00032877,31]
[394022791,1763200254645,-151.0,0.00032877,31]
[394022792,1763200254654,-151.0,0.00032877,31]
[394022793,1763200254663,-151.0,0.00032877,30]
[394022794,1763200254672,-151.0,0.00032877,30]
[394022795,1763200254681,-151.0,0.00032877,30]
[394022796,1763200254690,-150.0,0.00032877,60]
[394022797,1763200254699,-229.659242,0.00032877,31]
[394022798,1763200254708,-313.955974,0.00032877,31]
[394022799,1763200254717,-313.955974,0.00032877,31]
[394022800,1763200254725,-313.955974,0.00032877,31]
[394022801,1763200254735,-313.955974,0.00032877,31]
[394022802,1763200254744,-250.99999639,0.00032877,7]
[394022803,1763200254753,-293.42384258,0.0003291,102]
[394022804,1763200254762,-709.64,0.00032958,2]
[394022805,1763200254772,-204.02394866,0.00033,2]
[394022806,1763200254781,-155.0,0.00033,2]
[394022807,1763200254790,-2282.6408035,0.00033068,2]
[394022808,1763200254799,-293.42384258,0.00033094,110]
[394022809,1763200254808,-153.6413186,0.00033094,110]
[394022810,1763200254817,-500.0,0.000331,7]
[394022811,1763200254826,-225.090246,0.00033165,2]
[394022812,1763200254835,-223.872892,0.000332,117]
[394022813,1763200254844,-380.780957,0.00033395,20]